[Event "Turkish-ch Youth U18 Boys 2024"]
[Site "Belek Antalya"]
[Date "2024.01.23"]
[Round "4"]
[White "Erdogan, Tekin Alp"]
[Black "Ozcan, Alp Orcun"]
[Result "1-0"]
[ECO "D02"]
[WhiteElo "1992"]
[BlackElo "1657"]
[Annotator "RC"]
[PlyCount "131"]
[EventDate "2024.01.21"]
[EventType "swiss"]
[EventCountry "TUR"]
[SourceTitle "playchess.com"]
[Source "ChessBase"]
[SourceQuality "1"]
[TimeControl "5400+30"]

1. d4 {[%emt 0:01:00]} d5 {[%emt 0:01:00]} 2. Nf3 {[%emt 0:00:30]} Nf6 {[%emt 0:00:30]} 3. c3 {[%emt 0:00:00]} e6 {[%emt 0:00:00]} 4. Bf4 {[%emt 0:00:00]} c5 {[%emt 0:00:00]} 5. e3 {[%emt 0:00:30]} Bd6 {[%emt 0:00:00]} 6. Nbd2 {[%emt 0:00:30]} Bxf4 {[%emt 0:05:00]} 7. exf4 {[%emt 0:00:30]} O-O {[%emt 0:00:30]} 8. dxc5 {[%emt 0:00:30]} Qc7 {[%emt 0:00:30]} 9. g3 {[%emt 0:00:00]} Qxc5 {[%emt 0:05:30]} 10. Bd3 {[%emt 0:00:00]} b6 {[%emt 0:02:30]} 11. Qe2 {[%emt 0:01:30]} Nbd7 {[%emt 0:02:30]} 12. O-O {[%emt 0:08:30]} Qd6 {[%emt 0:02:30]} 13. Rfe1 {[%emt 0:04:30]} Nc5 {[%emt 0:01:30]} 14. Ne5 {[%emt 0:00:30]} Bb7 {[%emt 0:02:30]} 15. Nef3 {[%emt 0:07:30]} Rfe8 {[%emt 0:07:30]} 16. Rad1 {[%emt 0:01:30]} Qc7 {[%emt 0:08:30]} 17. Nd4 {[%emt 0:03:30]} Rad8 {[%emt 0:01:30]} 18. h4 {[%emt 0:06:30]} Nfd7 {[%emt 0:05:30]} 19. Bb5 {[%emt 0:05:30]} a6 {[%emt 0:01:30]} 20. Bxd7 {[%emt 0:00:30]} Rxd7 {[%emt 0:01:30]} 21. N2f3 {[%emt 0:02:30]} Rde7 {[%emt 0:01:30]} 22. Ng5 {[%emt 0:05:30]} f6 {[%emt 0:01:30]} 23. Ngf3 {[%emt 0:03:30]} Qd7 {[%emt 0:05:30]} 24. Qc2 {[%emt 0:02:30]} Ba8 {[%emt 0:08:30]} 25. h5 {[%emt 0:07:30]} Kh8 {[%emt 0:07:30]} 26. Nh4 {[%emt 0:04:30]} e5 {[%emt 0:03:30]} 27. Ndf5 {[%emt 0:01:30]} Re6 {[%emt 0:01:30]} 28. fxe5 {[%emt 0:00:30]} Rxe5 {[%emt 0:00:30]} 29. Qd2 {[%emt 0:10:30]} Ne4 {[%emt 0:02:30]} 30. Qd3 {[%emt 0:02:30]} Bc6 {[%emt 0:04:13]} 31. g4 {[%emt 0:01:49]} Nc5 {[%emt 0:01:41]} 32. Qd2 {[%emt 0:00:38]} Qe6 {[%emt 0:00:55]} 33. Rxe5 {[%emt 0:04:40]} Qxe5 {[%emt 0:00:30]} 34. Qd4 {[%emt 0:00:30]} Qe2 {[%emt 0:00:30]} 35. Ng3 {[%emt 0:06:02]} Qe5 {[%emt 0:09:30]} 36. Nhf5 {[%emt 0:01:58]} Kg8 {[%emt 0:00:30]} 37. Ne3 {[%emt 0:00:30]} Qxd4 {[%emt 0:00:30]} 38. Rxd4 {[%emt 0:00:30]} Ne6 {[%emt 0:00:30]} 39. Rd1 {[%emt 0:00:30]} Rd8 {[%emt 0:00:30]} 40. Ngf5 {[%emt 0:00:00]} Kf7 {[%emt 0:03:36]} 41. Nd4 {[%emt 0:00:00]} Nxd4 {[%emt 0:00:35]} 42. Rxd4 {[%emt 0:00:00]} Ke6 {[%emt 0:00:14]} 43. f4 {[%emt 0:00:43]} Kd6 {[%emt 0:01:17]} 44. Nf5+ {[%emt 0:00:30]} Kc5 {[%emt 0:00:00]} 45. Nxg7 {[%emt 0:01:00]} Bd7 {[%emt 0:01:03]} 46. h6 {[%emt 0:00:49]} Rf8 {[%emt 0:00:30]} 47. Kf2 {[%emt 0:00:30]} Rf7 {[%emt 0:00:30]} 48. f5 {[%emt 0:01:11]} Bb5 {[%emt 0:01:33]} 49. Ne6+ {[%emt 0:00:30]} Kd6 {[%emt 0:00:30]} 50. b3 {[%emt 0:01:26]} Ke5 {[%emt 0:00:00]} 51. Ke3 {[%emt 0:01:10]} Re7 {[%emt 0:01:05]} 52. Kf3 {[%emt 0:02:17]} a5 {[%emt 0:00:57]} 53. Rd1 {[%emt 0:00:38]} Bd7 {[%emt 0:00:48]} 54. Nf4 {[%emt 0:00:55]} Bc6 {[%emt 0:00:30]} 55. Re1+ {[%emt 0:00:30]} Kd6 {[%emt 0:00:00]} 56. Rxe7 {[%emt 0:00:00]} Kxe7 {[%emt 0:00:19]} 57. Ke3 {[%emt 0:00:00]} Kd6 {[%emt 0:00:21]} 58. Kd4 {[%emt 0:00:00]} Bb7 {[%emt 0:00:58]} 59. Ne6 {[%emt 0:01:35]} Ba6 {[%emt 0:00:16]} 60. Nf8 {[%emt 0:00:23]} Ke7 {[%emt 0:00:46]} 61. Nxh7 {[%emt 0:00:13]} Bc8 {[%emt 0:00:41]} 62. Kxd5 {[%emt 0:01:12]} Bd7 {[%emt 0:00:20]} 63. Ng5 {[%emt 0:00:23]} Kf8 {[%emt 0:00:30]} 64. Ne4 {[%emt 0:00:00]} Kf7 {[%emt 0:00:25]} 65. h7 {[%emt 0:00:17]} Kg7 {[%emt 0:00:30]} 66. Nxf6 {[%emt 0:00:00]} 1-0

[Event "Turkish-ch Youth U18 Boys 2024"]
[Site "Belek Antalya"]
[Date "2024.01.23"]
[Round "4"]
[White "Aksu, Ata Anil"]
[Black "Anacak, Hasan Gunes"]
[Result "0-1"]
[ECO "B20"]
[WhiteElo "1728"]
[BlackElo "2102"]
[Annotator "RC"]
[PlyCount "48"]
[EventDate "2024.01.21"]
[EventType "swiss"]
[EventCountry "TUR"]
[SourceTitle "playchess.com"]
[Source "ChessBase"]
[SourceQuality "1"]
[TimeControl "5400+30"]

1. e4 {[%emt 0:01:00]} c5 {[%emt 0:01:00]} 2. b3 {[%emt 0:00:30]} g6 {[%emt 0:00:30]} 3. Bb2 {[%emt 0:00:30]} Nf6 {[%emt 0:00:00]} 4. Qf3 {[%emt 0:00:00]} d6 {[%emt 0:00:00]} 5. Bb5+ {[%emt 0:00:00]} Nbd7 {[%emt 0:00:00]} 6. Bxf6 {[%emt 0:01:30]} exf6 {[%emt 0:00:00]} 7. Qd3 {[%emt 0:00:30]} Be7 {[%emt 0:00:00]} 8. Nc3 {[%emt 0:00:30]} O-O {[%emt 0:03:00]} 9. Bxd7 {[%emt 0:03:30]} Bxd7 {[%emt 0:06:30]} 10. Nge2 {[%emt 0:06:30]} f5 {[%emt 0:07:30]} 11. O-O {[%emt 0:01:30]} fxe4 {[%emt 0:02:30]} 12. Qxe4 {[%emt 0:01:30]} Bc6 {[%emt 0:00:30]} 13. Nd5 {[%emt 0:04:30]} Re8 {[%emt 0:01:30]} 14. Nec3 {[%emt 0:07:30]} Bf8 {[%emt 0:12:30]} 15. Qf4 {[%emt 0:04:30]} Bg7 {[%emt 0:00:30]} 16. Rae1 {[%emt 0:00:30]} Re5 {[%emt 0:08:30]} 17. Rxe5 {[%emt 0:07:30]} Bxe5 {[%emt 0:14:30]} 18. Qg4 {[%emt 0:03:30]} h5 {[%emt 0:02:30]} 19. Qc4 {[%emt 0:07:30]} a6 {[%emt 0:04:30]} 20. b4 {[%emt 0:04:30]} Bxc3 {[%emt 0:15:44]} 21. Nxc3 {[%emt 0:01:30]} Qg5 {[%emt 0:00:11]} 22. f3 {[%emt 0:10:30]} Qxd2 {[%emt 0:01:49]} 23. Ne4 {[%emt 0:12:30]} Qe3+ {[%emt 0:01:55]} 24. Rf2 {[%emt 0:00:40]} Bb5 {[%emt 0:01:01]} 0-1

[Event "Turkish-ch Youth U18 Boys 2024"]
[Site "Belek Antalya"]
[Date "2024.01.23"]
[Round "4"]
[White "Kuru, Berkay Goktug"]
[Black "Acar, Erdogan"]
[Result "1-0"]
[ECO "D12"]
[WhiteElo "1280"]
[BlackElo "1594"]
[Annotator "NA RC COMBH"]
[PlyCount "113"]
[EventDate "2024.01.21"]
[EventType "swiss"]
[EventCountry "TUR"]
[SourceTitle "playchess.com"]
[Source "ChessBase"]
[SourceQuality "1"]
[TimeControl "5400+30"]

1. d4 {[%emt 0:02:00]} d5 {[%emt 0:01:00]} 2. c4 {[%emt 0:00:30]} c6 {[%emt 0:00:30]} 3. Nf3 {[%emt 0:00:30]} Nf6 {[%emt 0:00:30]} 4. e3 {[%emt 0:00:00]} Bf5 {[%emt 0:02:30]} 5. Nc3 {[%emt 0:00:00]} e6 {[%emt 0:01:30]} 6. Nh4 {[%emt 0:00:00]} Bg6 {[%emt 0:03:30]} 7. Nxg6 {[%emt 0:00:00]} hxg6 {[%emt 0:00:30]} 8. Qb3 {[%emt 0:01:30]} Qc7 {[%emt 0:05:30]} 9. h3 {[%emt 0:06:30]} Be7 {[%emt 0:06:30]} 10. Bd2 {[%emt 0:04:30]} Nbd7 {[%emt 0:02:30]} 11. cxd5 {[%emt 0:06:30]} exd5 {[%emt 0:01:30]} 12. Bd3 {[%emt 0:00:30]} g5 {[%emt 0:10:30]} 13. O-O-O {[%emt 0:12:30]} O-O-O {[%emt 0:05:30]} 14. Kb1 {[%emt 0:12:30]} Qb6 {[%emt 0:07:30]} 15. Rc1 {[%emt 0:12:30]} Qxb3 {[%emt 0:07:30]} 16. axb3 {[%emt 0:00:30]} Kb8 {[%emt 0:04:30]} 17. g3 {[%emt 0:09:30]} g6 {[%emt 0:04:30]} 18. Be2 {[%emt 0:06:30]} Rde8 {[%emt 0:06:30]} 19. Bf3 {[%emt 0:02:30]} Bd6 {[%emt 0:07:30]} 20. Kc2 {[%emt 0:03:45]} b5 {[%emt 0:02:54]} 21. Kd3 {[%emt 0:04:38]} Nb6 {[%emt 0:05:14]} 22. Na2 {[%emt 0:04:54]} Kb7 {[%emt 0:01:10]} 23. Bb4 {[%emt 0:01:02]} Bxb4 {[%emt 0:02:38]} 24. Nxb4 {[%emt 0:00:02]} Re6 {[%emt 0:00:42]} 25. Ke2 {[%emt 0:00:25]} Nbd7 {[%emt 0:01:37]} 26. Bg4 {[%emt 0:03:55]} Nxg4 {[%emt 0:02:15]} 27. hxg4 {[%emt 0:00:30]} Rhe8 {[%emt 0:01:26]} 28. Rh7 {[%emt 0:02:03]} R8e7 {[%emt 0:00:30]} 29. Nd3 {[%emt 0:00:30]} Kb6 {[%emt 0:00:00]} 30. b4 {[%emt 0:01:16]} Re4 {[%emt 0:00:29]} 31. Nc5 {[%emt 0:00:30]} Nxc5 {[%emt 0:00:30]} 32. bxc5+ {[%emt 0:00:30]} Kb7 {[%emt 0:00:30]} 33. Kf3 {[%emt 0:00:30]} a5 {[%emt 0:00:30]} 34. Ra1 {[%emt 0:00:30]} a4 {[%emt 0:00:30]} 35. b3 {[%emt 0:01:52]} axb3 {[%emt 0:00:17]} 36. Rb1 {[%emt 0:00:32]} R4e6 {[%emt 0:02:03]} 37. Rxb3 {[%emt 0:00:30]} Rf6+ {[%emt 0:00:00]} 38. Ke2 {[%emt 0:00:43]} Re8 {[%emt 0:00:01]} 39. Ra3 {[%emt 0:00:34]} Ra8 {[%emt 0:00:18]} 40. Rxa8 {[%emt 0:00:14]} Kxa8 {[%emt 0:00:30]} 41. f3 {[%emt 0:00:30]} Kb7 {[%emt 0:00:30]} 42. e4 {[%emt 0:00:30]} dxe4 {[%emt 0:00:30]} 43. fxe4 {[%emt 0:00:00]} Ka6 {[%emt 0:02:50]} 44. e5 {[%emt 0:00:24]} Re6 {[%emt 0:00:06]} 45. Rxf7 {[%emt 0:00:05]} Re8 {[%emt 0:00:30]} 46. Rc7 {[%emt 0:00:30]} Re6 {[%emt 0:00:30]} 47. Kd3 {[%emt 0:00:39]} Ka5 {[%emt 0:00:38]} 48. Kc3 {[%emt 0:00:50]} Ka6 {[%emt 0:00:30]} 49. Kb4 {[%emt 0:00:01]} Re7 {[%emt 0:00:53]} 50. Rxc6+ {[%emt 0:00:30]} Kb7 {[%emt 0:00:30]} 51. Kxb5 {[%emt 0:00:30]} Rd7 {[%emt 0:00:06]} 52. Rd6 {[%emt 0:00:00]} Re7 {[%emt 0:00:29]} 53. c6+ {[%emt 0:00:22]} Kc8 {[%emt 0:00:25]} 54. Kb6 {[%emt 0:00:18]} Rg7 {[%emt 0:00:15]} 55. Rd7 {[%emt 0:00:27]} Rg8 {[%emt 0:00:30]} 56. Ra7 {[%emt 0:00:00]} Kb8 {[%emt 0:00:00]} 57. c7+ {[%emt 0:00:00]} 1-0

[Event "Turkish-ch Youth U18 Boys 2024"]
[Site "Belek Antalya"]
[Date "2024.01.23"]
[Round "4"]
[White "Yildirim, Orhun Ali"]
[Black "Gunal, Yusuf Kursat"]
[Result "1-0"]
[ECO "B45"]
[WhiteElo "1229"]
[BlackElo "1801"]
[Annotator "NA RC COMBH"]
[PlyCount "116"]
[EventDate "2024.01.21"]
[EventType "swiss"]
[EventCountry "TUR"]
[SourceTitle "playchess.com"]
[Source "ChessBase"]
[SourceQuality "1"]
[TimeControl "5400+30"]

1. e4 {[%emt 0:01:00]} c5 {[%emt 0:01:00]} 2. Nf3 {[%emt 0:00:30]} e6 {[%emt 0:00:30]} 3. d4 {[%emt 0:00:30]} cxd4 {[%emt 0:00:30]} 4. Nxd4 {[%emt 0:00:30]} Nf6 {[%emt 0:00:30]} 5. Nc3 {[%emt 0:00:30]} Nc6 {[%emt 0:00:30]} 6. Be3 {[%emt 0:00:30]} Bb4 {[%emt 0:00:30]} 7. f3 {[%emt 0:00:30]} Qa5 {[%emt 0:00:30]} 8. Qd2 {[%emt 0:00:30]} d5 {[%emt 0:00:30]} 9. Bb5 {[%emt 0:00:30]} Bd7 {[%emt 0:00:30]} 10. Rd1 {[%emt 0:00:30]} a6 {[%emt 0:00:30]} 11. Bxc6 {[%emt 0:00:30]} Bxc6 {[%emt 0:00:30]} 12. e5 {[%emt 0:00:30]} Nd7 {[%emt 0:00:30]} 13. f4 {[%emt 0:00:30]} Nc5 {[%emt 0:00:30]} 14. Nb3 {[%emt 0:00:30]} Nxb3 {[%emt 0:00:30]} 15. axb3 {[%emt 0:43:30]} g6 {[%emt 0:51:30]} 16. O-O {[%emt 0:00:30]} O-O-O {[%emt 0:03:30]} 17. Qf2 {[%emt 0:01:30]} d4 {[%emt 0:09:30]} 18. Bxd4 {[%emt 0:01:30]} Rxd4 {[%emt 0:01:30]} 19. Rxd4 {[%emt 0:01:30]} Bc5 {[%emt 0:01:30]} 20. Rfd1 {[%emt 0:03:30]} Kc7 {[%emt 0:00:30]} 21. Qd2 {[%emt 0:07:30]} Qb6 {[%emt 0:01:30]} 22. Kh1 {[%emt 0:02:30]} Bxd4 {[%emt 0:00:30]} 23. Qxd4 {[%emt 0:00:00]} Qxd4 {[%emt 0:00:30]} 24. Rxd4 {[%emt 0:00:00]} h5 {[%emt 0:00:00]} 25. Kg1 {[%emt 0:01:30]} h4 {[%emt 0:00:00]} 26. Kf2 {[%emt 0:01:30]} b5 {[%emt 0:04:30]} 27. Ne4 {[%emt 0:01:30]} Bxe4 {[%emt 0:03:37]} 28. Rxe4 {[%emt 0:00:30]} Rd8 {[%emt 0:00:17]} 29. Ke2 {[%emt 0:00:30]} Kc6 {[%emt 0:00:27]} 30. Re3 {[%emt 0:01:30]} (30. b4 $142) 30... Rd4 {[%emt 0:00:46]} 31. Rc3+ {[%emt 0:03:30]} Kb6 {[%emt 0:00:49]} 32. g3 $16 {[%emt 0:01:30]} h3 {[%emt 0:02:58]} 33. Rc8 {[%emt 0:02:30]} Re4+ {[%emt 0:00:26]} 34. Kf3 {[%emt 0:00:00]} Re1 {[%emt 0:00:30]} 35. Kg4 {[%emt 0:00:00]} Rb1 {[%emt 0:00:30]} 36. Kxh3 {[%emt 0:00:30]} Rxb2 {[%emt 0:00:00]} 37. Kg4 {[%emt 0:00:30]} a5 {[%emt 0:00:00]} 38. Kg5 {[%emt 0:00:30]} a4 {[%emt 0:00:15]} 39. bxa4 {[%emt 0:01:30]} Kb7 {[%emt 0:00:05]} 40. Rc3 {[%emt 0:02:30]} bxa4 {[%emt 0:00:33]} 41. Kf6 {[%emt 0:00:30]} Rb6 {[%emt 0:02:52]} 42. Kxf7 {[%emt 0:00:30]} Ra6 {[%emt 0:00:00]} 43. Ra3 {[%emt 0:00:30]} Kc7 {[%emt 0:00:00]} 44. Kxg6 {[%emt 0:00:30]} Kd7 {[%emt 0:00:00]} 45. f5 {[%emt 0:01:43]} exf5+ {[%emt 0:00:00]} 46. Kxf5 {[%emt 0:00:34]} Ke7 {[%emt 0:00:15]} 47. h4 {[%emt 0:00:30]} Kf7 {[%emt 0:00:00]} 48. g4 {[%emt 0:00:13]} Kg7 {[%emt 0:00:14]} 49. g5 {[%emt 0:00:30]} Kf7 {[%emt 0:00:30]} 50. h5 {[%emt 0:00:30]} Kg7 {[%emt 0:00:30]} 51. c4 {[%emt 0:00:30]} Kf7 {[%emt 0:00:00]} 52. h6 {[%emt 0:01:19]} Kg8 {[%emt 0:00:00]} 53. g6 {[%emt 0:00:30]} Kf8 {[%emt 0:00:00]} 54. c5 {[%emt 0:00:30]} Kg8 {[%emt 0:00:18]} 55. c6 {[%emt 0:00:30]} Ra7 {[%emt 0:00:30]} 56. e6 {[%emt 0:00:03]} Kf8 {[%emt 0:00:27]} 57. c7 {[%emt 0:00:30]} Rxc7 {[%emt 0:00:30]} 58. Rxa4 {[%emt 0:00:30]} Rc8 {[%emt 0:00:00]} 1-0

[Event "Turkish-ch Youth U18 Boys 2024"]
[Site "Belek Antalya"]
[Date "2024.01.23"]
[Round "5"]
[White "Anacak, Hasan Gunes"]
[Black "Temizer, Umut"]
[Result "1-0"]
[ECO "B90"]
[WhiteElo "2102"]
[BlackElo "2071"]
[Annotator "NA RC"]
[PlyCount "99"]
[EventDate "2024.01.21"]
[EventType "swiss"]
[EventCountry "TUR"]
[SourceTitle "playchess.com"]
[Source "ChessBase"]
[SourceQuality "1"]
[TimeControl "5400+30"]

1. e4 {[%emt 0:01:00]} c5 {[%emt 0:04:00]} 2. Nf3 {[%emt 0:00:30]} d6 {[%emt 0:00:30]} 3. d4 {[%emt 0:00:30]} cxd4 {[%emt 0:00:30]} 4. Nxd4 {[%emt 0:00:30]} Nf6 {[%emt 0:00:00]} 5. Nc3 {[%emt 0:00:00]} a6 {[%emt 0:00:00]} 6. a3 {[%emt 0:00:00]} e6 {[%emt 0:02:30]} 7. g4 {[%emt 0:00:00]} h6 {[%emt 0:03:30]} 8. h4 {[%emt 0:03:00]} b5 {[%emt 0:04:30]} 9. Bg2 $14 {[%emt 0:01:30]} Bb7 {[%emt 0:08:30]} 10. g5 {[%emt 0:02:30]} hxg5 {[%emt 0:00:30]} 11. hxg5 {[%emt 0:00:30]} Rxh1+ {[%emt 0:00:30]} 12. Bxh1 {[%emt 0:00:30]} Nfd7 {[%emt 0:01:30]} 13. g6 {[%emt 0:03:30]} Qf6 {[%emt 0:10:30]} 14. gxf7+ {[%emt 0:04:30]} Kxf7 {[%emt 0:03:30]} 15. Be3 {[%emt 0:08:30]} Nc6 {[%emt 0:04:30]} 16. Nf3 {[%emt 0:34:30]} Kg8 {[%emt 0:16:30]} 17. Qe2 {[%emt 0:16:30]} Rc8 {[%emt 0:14:30]} 18. Ng5 {[%emt 0:03:50]} Be7 {[%emt 0:04:16]} 19. Qh5 {[%emt 0:01:37]} Nf8 {[%emt 0:00:27]} 20. e5 {[%emt 0:00:43]} dxe5 {[%emt 0:04:19]} 21. Be4 {[%emt 0:02:01]} g6 {[%emt 0:01:23]} 22. Qh1 {[%emt 0:01:08]} Nd4 {[%emt 0:05:34]} 23. Bxb7 {[%emt 0:01:15]} Nxc2+ {[%emt 0:00:30]} 24. Ke2 {[%emt 0:00:30]} Rc7 {[%emt 0:02:36]} 25. Rg1 {[%emt 0:04:53]} Nd4+ {[%emt 0:01:29]} 26. Kf1 {[%emt 0:01:46]} Nf5 {[%emt 0:00:37]} 27. Bb6 {[%emt 0:01:48]} Rd7 {[%emt 0:00:44]} 28. Nce4 {[%emt 0:01:39]} Qg7 {[%emt 0:00:04]} 29. Bc8 {[%emt 0:00:23]} Bxg5 {[%emt 0:01:58]} 30. Nxg5 {[%emt 0:01:49]} Rd1+ {[%emt 0:02:39]} 31. Ke2 {[%emt 0:00:29]} Rd6 {[%emt 0:01:25]} 32. Bc5 {[%emt 0:01:04]} Nd4+ {[%emt 0:00:19]} 33. Kf1 {[%emt 0:00:57]} Qc7 {[%emt 0:00:20]} 34. Ne4 {[%emt 0:01:59]} Qxc8 {[%emt 0:01:25]} 35. Bxd6 {[%emt 0:00:30]} Qc1+ {[%emt 0:00:30]} 36. Kg2 {[%emt 0:00:30]} Qf4 {[%emt 0:00:30]} 37. Re1 {[%emt 0:00:37]} Qf3+ {[%emt 0:00:42]} 38. Kg1 {[%emt 0:00:44]} Ne2+ {[%emt 0:01:12]} 39. Rxe2 {[%emt 0:00:30]} Qxe2 {[%emt 0:00:00]} 40. Qh4 {[%emt 0:00:47]} Nh7 {[%emt 0:00:54]} 41. Qd8+ {[%emt 0:00:58]} Kf7 {[%emt 0:00:49]} 42. Qe7+ {[%emt 0:00:00]} Kg8 {[%emt 0:00:30]} 43. Qxe6+ {[%emt 0:00:00]} Kg7 {[%emt 0:00:00]} 44. Bxe5+ {[%emt 0:00:50]} Kf8 {[%emt 0:00:00]} 45. Bd6+ {[%emt 0:00:27]} Kg7 {[%emt 0:00:00]} 46. Qe7+ {[%emt 0:00:22]} Kh6 {[%emt 0:00:27]} 47. Bf4+ {[%emt 0:00:18]} g5 {[%emt 0:00:18]} 48. Bxg5+ {[%emt 0:00:24]} Kg6 {[%emt 0:00:15]} 49. Qe6+ {[%emt 0:00:30]} Kg7 {[%emt 0:00:00]} 50. Bh6+ {[%emt 0:00:00]} 1-0

[Event "Turkish-ch Youth U18 Boys 2024"]
[Site "Belek Antalya"]
[Date "2024.01.23"]
[Round "5"]
[White "Engin, Onur Cinar"]
[Black "Erdogan, Tekin Alp"]
[Result "1-0"]
[ECO "B22"]
[WhiteElo "2061"]
[BlackElo "1992"]
[Annotator "NA"]
[PlyCount "71"]
[EventDate "2024.01.21"]
[EventType "swiss"]
[EventCountry "TUR"]
[SourceTitle "playchess.com"]
[Source "ChessBase"]
[SourceQuality "1"]
[TimeControl "5400+30"]

1. e4 {[%emt 0:01:00]} c5 {[%emt 0:01:00]} 2. c3 {[%emt 0:00:30]} Nf6 {[%emt 0:00:30]} 3. e5 {[%emt 0:00:00]} Nd5 {[%emt 0:00:00]} 4. Nf3 {[%emt 0:00:00]} Nc6 {[%emt 0:00:00]} 5. d4 {[%emt 0:00:30]} cxd4 {[%emt 0:00:30]} 6. cxd4 {[%emt 0:00:30]} d6 {[%emt 0:00:30]} 7. Bc4 {[%emt 0:00:00]} Nb6 {[%emt 0:00:00]} 8. Bb5 {[%emt 0:00:00]} Bd7 {[%emt 0:00:00]} 9. Nc3 {[%emt 0:00:30]} dxe5 {[%emt 0:00:00]} 10. dxe5 {[%emt 0:00:00]} g6 {[%emt 0:00:00]} 11. O-O {[%emt 0:01:00]} Bg7 {[%emt 0:00:00]} 12. Qe2 {[%emt 0:01:30]} O-O {[%emt 0:00:00]} 13. Rd1 {[%emt 0:00:30]} Qc7 {[%emt 0:00:00]} 14. a4 {[%emt 0:05:30]} Nxe5 $14 {[%emt 0:04:00]} (14... Bxe5 $2 {is the wrong capture.} 15. Bxc6 Bxh2+ 16. Nxh2 $18) (14... a5 $11 {should be considered.}) 15. a5 {[%emt 0:23:30]} Bxb5 {[%emt 0:03:30]} 16. Qxb5 {[%emt 0:00:30]} Nxf3+ {[%emt 0:13:30]} 17. gxf3 {[%emt 0:00:30]} Nc8 {[%emt 0:00:30]} 18. Rd7 {[%emt 0:01:30]} Qe5 {[%emt 0:05:30]} 19. Qxe5 {[%emt 0:01:30]} Bxe5 {[%emt 0:00:30]} 20. Rxb7 {[%emt 0:03:30]} Rd8 {[%emt 0:01:30]} 21. Be3 {[%emt 0:01:30]} Rb8 {[%emt 0:07:30]} 22. a6 {[%emt 0:03:30]} Kg7 {[%emt 0:08:30]} 23. f4 {[%emt 0:12:30]} Bd6 {[%emt 0:01:30]} 24. Ne4 {[%emt 0:04:30]} Kf8 {[%emt 0:06:30]} 25. Rd1 {[%emt 0:05:30]} Ke8 {[%emt 0:03:30]} 26. Bc5 {[%emt 0:07:30]} Bc7 {[%emt 0:07:30]} 27. Re1 {[%emt 0:02:30]} Kd7 {[%emt 0:01:30]} 28. Rd1+ {[%emt 0:14:00]} Ke8 {[%emt 0:00:00]} 29. Rc1 {[%emt 0:01:42]} Bxf4 {[%emt 0:17:00]} 30. Nf6+ {[%emt 0:00:30]} Kf8 {[%emt 0:00:30]} 31. Rc4 {[%emt 0:01:46]} Rxb7 {[%emt 0:05:02]} 32. axb7 {[%emt 0:00:30]} Bd6 {[%emt 0:00:00]} 33. Rd4 {[%emt 0:03:13]} Nb6 {[%emt 0:01:07]} 34. Bxd6 {[%emt 0:00:29]} exd6 {[%emt 0:00:45]} 35. Rxd6 {[%emt 0:00:04]} Rb8 {[%emt 0:00:35]} 36. Rxb6 {[%emt 0:00:04]} 1-0

[Event "Turkish-ch Youth U18 Boys 2024"]
[Site "Belek Antalya"]
[Date "2024.01.23"]
[Round "5"]
[White "Ozcan, Alp Orcun"]
[Black "Kuru, Berkay Goktug"]
[Result "1-0"]
[ECO "C42"]
[WhiteElo "1657"]
[BlackElo "1280"]
[Annotator "NA RC COMBH"]
[PlyCount "49"]
[EventDate "2024.01.21"]
[EventType "swiss"]
[EventCountry "TUR"]
[SourceTitle "playchess.com"]
[Source "ChessBase"]
[SourceQuality "1"]
[TimeControl "5400+30"]

1. e4 {[%emt 0:01:00]} e5 {[%emt 0:01:00]} 2. Nf3 {[%emt 0:00:30]} Nf6 {[%emt 0:00:30]} 3. Nxe5 {[%emt 0:00:00]} d6 {[%emt 0:00:30]} 4. Nf3 {[%emt 0:00:00]} Nxe4 {[%emt 0:00:30]} 5. Nc3 {[%emt 0:00:30]} Nxc3 {[%emt 0:00:30]} 6. dxc3 {[%emt 0:00:30]} Be7 {[%emt 0:00:30]} 7. Be3 {[%emt 0:00:00]} O-O {[%emt 0:00:00]} 8. Qd2 {[%emt 0:00:00]} Nd7 {[%emt 0:00:00]} 9. h4 {[%emt 0:00:00]} Ne5 {[%emt 0:00:00]} 10. Ng5 {[%emt 0:10:00]} c6 {[%emt 0:09:00]} 11. O-O-O {[%emt 0:02:30]} Qa5 {[%emt 0:04:30]} 12. Kb1 {[%emt 0:00:30]} Bf5 {[%emt 0:06:30]} 13. f3 {[%emt 0:08:30]} b5 {[%emt 0:06:30]} 14. g4 {[%emt 0:08:30]} Be6 {[%emt 0:01:30]} 15. b3 {[%emt 0:01:30]} Rab8 {[%emt 0:07:30]} 16. f4 {[%emt 0:03:30]} Nxg4 {[%emt 0:08:30]} 17. Qd3 {[%emt 0:00:30]} Nf6 {[%emt 0:12:30]} 18. Bd4 {[%emt 0:00:30]} g6 {[%emt 0:00:30]} 19. Nxe6 {[%emt 0:08:30]} fxe6 {[%emt 0:00:30]} 20. h5 {[%emt 0:00:30]} Kf7 {[%emt 0:04:30]} 21. hxg6+ {[%emt 0:01:30]} hxg6 {[%emt 0:00:30]} 22. Be2 {[%emt 0:03:30]} Rbd8 {[%emt 0:04:30]} 23. Bxf6 {[%emt 0:02:30]} Bxf6 {[%emt 0:02:30]} 24. Rh7+ {[%emt 0:00:30]} Bg7 {[%emt 0:00:30]} 25. Rg1 {[%emt 0:00:00]} 1-0

[Event "Turkish-ch Youth U18 Boys 2024"]
[Site "Belek Antalya"]
[Date "2024.01.23"]
[Round "5"]
[White "Kaderoglu, Ali Efe"]
[Black "Yildirim, Orhun Ali"]
[Result "1-0"]
[ECO "B13"]
[WhiteElo "1262"]
[BlackElo "1229"]
[Annotator "NA RC COMBH"]
[PlyCount "61"]
[EventDate "2024.01.21"]
[EventType "swiss"]
[EventCountry "TUR"]
[SourceTitle "playchess.com"]
[Source "ChessBase"]
[SourceQuality "1"]
[TimeControl "5400+30"]

1. e4 {[%emt 0:03:00]} c6 {[%emt 0:01:00]} 2. d4 {[%emt 0:00:30]} d5 {[%emt 0:00:30]} 3. exd5 {[%emt 0:00:30]} cxd5 {[%emt 0:00:30]} 4. Bd3 {[%emt 0:00:30]} Nc6 {[%emt 0:00:30]} 5. c3 {[%emt 0:00:30]} Nf6 {[%emt 0:00:00]} 6. Nf3 {[%emt 0:00:00]} Bg4 {[%emt 0:00:00]} 7. O-O {[%emt 0:00:00]} e6 {[%emt 0:00:00]} 8. h3 {[%emt 0:01:30]} Bh5 {[%emt 0:00:00]} 9. Re1 {[%emt 0:05:30]} Rb8 {[%emt 0:01:30]} 10. Bf4 {[%emt 0:01:30]} Bd6 {[%emt 0:00:30]} 11. Bxd6 {[%emt 0:00:30]} Qxd6 {[%emt 0:00:30]} 12. Nbd2 {[%emt 0:00:30]} b5 {[%emt 0:00:30]} 13. a3 {[%emt 0:01:30]} O-O {[%emt 0:08:30]} 14. Qe2 {[%emt 0:06:30]} a6 {[%emt 0:01:30]} 15. Qe3 {[%emt 0:03:30]} a5 {[%emt 0:02:30]} 16. Ne5 {[%emt 0:03:30]} b4 {[%emt 0:02:30]} 17. axb4 {[%emt 0:00:30]} axb4 {[%emt 0:01:30]} 18. Ra6 {[%emt 0:06:30]} Rfc8 {[%emt 0:00:30]} 19. cxb4 {[%emt 0:01:30]} Ra8 {[%emt 0:07:30]} 20. Rea1 {[%emt 0:01:30]} Qc7 {[%emt 0:02:30]} 21. Rxa8 {[%emt 0:00:30]} Nxb4 {[%emt 0:01:30]} 22. Rxc8+ {[%emt 0:00:30]} Qxc8 {[%emt 0:00:30]} 23. Ndf3 {[%emt 0:00:30]} Nxd3 {[%emt 0:00:30]} 24. Qxd3 {[%emt 0:00:30]} Ne4 {[%emt 0:00:30]} 25. Nd2 {[%emt 0:00:30]} f6 {[%emt 0:00:30]} 26. Nef3 {[%emt 0:00:30]} Bg6 {[%emt 0:01:30]} 27. Qa3 {[%emt 0:00:30]} Nxd2 {[%emt 0:01:30]} 28. Nxd2 {[%emt 0:00:30]} Be8 {[%emt 0:00:30]} 29. Qa8 {[%emt 0:00:00]} Qd7 {[%emt 0:00:30]} 30. Ra7 {[%emt 0:01:00]} Qb5 {[%emt 0:00:00]} 31. Qb7 {[%emt 0:00:30]} 1-0